Cogmind - Beta 13 @@@ ROGUE MODE // 2024.04.29 @ 01:47:50 Player: gigi283 Result: Self-destructed Performance ------------- Evolutions (1) 500 Regions Visited (2) 400 Robots Destroyed (7) 35 Value Destroyed (154) 154 Prototype IDs (0) 0 Alien Tech Used (0) 0 Bonus (0) 0 TOTAL SCORE: 1089 Bonus ------- None Cogmind --------- Core Integrity 320/400 Matter 285/300 Energy 36/250 System Corruption 0% Temperature Cool (17) Movement Core (200) Ox3 Location -9/Materials Parts ------- > --- POWER (2) -------- Ion Engine > --- PROPULSION (2) --- (None) > --- UTILITY (3) ------ Small Storage Unit > --- WEAPON (2) ------- Medium Laser > --- INVENTORY (8) ---- (None) Peak State ------------ > --- POWER ------------ Ion Engine Ion Engine > --- PROPULSION ------- Light Treads Light Treads > --- UTILITY ---------- Small Storage Unit Seismic Detector > --- WEAPON ----------- Medium Laser Rocket Launcher > --- INVENTORY -------- Ion Engine EM Pulse Gun Medium Laser [Rating: 9] Favorites ----------- Power Ion Engine Engine Ion Engine Propulsion Light Treads Treads Light Treads Utility Small Storage Unit Device Seismic Detector Storage Small Storage Unit Weapon Medium Laser Energy Gun Medium Laser Launcher Grenade Launcher Build | -11 -10 -9 ------- Run | Yrd Mat Mat Slots Evolved 2 | . . 2 Power 1 | . . 1 Propulsion . | . . . Utility 1 | . . 1 Weapon . | . . . Parts Attached 12 | 5 2 5 Power 3 | 1 . 2 Engine 3 | 1 . 2 Core . | . . . Reactor . | . . . Propulsion 2 | 2 . . Treads 2 | 2 . . Leg . | . . . Wheel . | . . . Hover . | . . . Flight . | . . . Utility 2 | 1 1 . Device 1 | . 1 . Storage 1 | 1 . . Processor . | . . . Hackware . | . . . Protection . | . . . Artifact . | . . . Weapon 5 | 1 1 3 Energy Gun 3 | 1 . 2 Energy Cannon . | . . . Ballistic Gun . | . . . Ballistic Cannon . | . . . Launcher 2 | . 1 1 Special Weapon . | . . . Impact Weapon . | . . . Slashing Weapon . | . . . Piercing Weapon . | . . . Special Melee Weapon . | . . . Unidentified Prototypes . | . . . Parts Lost 8 | . . 8 Power 2 | . . 2 Propulsion 2 | . . 2 Utility 1 | . . 1 Weapon 3 | . . 3 Highest Loss Streak 8 | . . 8 To Critical Strikes . | . . . Average Slot Usage (%) 80 | . 78 81 Engine 16 | . 14 18 Treads 23 | . 28 20 Device 7 | . 2 10 Storage 12 | . 14 11 Energy Gun 12 | . 14 11 Launcher 7 | . 5 8 Naked Turns . | . . . Heaviest Build 22 | 12 16 22 Greatest Support 40 | 40 40 40 Greatest Overweight (x) 2 | . . 2 Average Overweight (x) . | . . . Largest Inventory Capacity 8 | 8 8 8 Average Capacity 7 | 7 8 8 Most Carried 5 | 4 5 4 Average Carried 3 | 2 3 2 Final Capacity 8 | 8 8 8 Final Carried 4 | 3 4 . Class Distribution -------------------- 100% | Mutant Dominant Class ---------------- Mutant | -10/Materials Mutant | -9/Materials Resources | -11 -10 -9 ----------- Run | Yrd Mat Mat Matter Collected 300 | 250 20 30 Remotely . | . . . Salvage Created 204 | . 62 142 Parts 15 | . 4 11 Haulers Intercepted . | . . . Recyclers Shooed . | . . . Parts Field Recycled . | . . . Retrieved Matter . | . . . Parts Self-Destructed . | . . . Prevented . | . . . Kills | -11 -10 -9 ------- Run | Yrd Mat Mat Combat Hostiles Destroyed 5 | . 1 4 Guns 2 | . . 2 AOE 3 | . 1 2 Classes Destroyed 5 | . 2 3 Builder 1 | . . 1 Watcher 1 | . 1 . Swarmer 2 | . . 2 Grunt 2 | . 1 1 Sentry 1 | . . 1 Best Kill Streak 2 | . 1 2 Combat Bots Only 2 | . 1 2 Max Kills in Single Turn 2 | . 1 2 Gunslinging . | . . . Exploded 2 | . 1 2 Melee . | . . . Uniques/NPCs Destroyed . | . . . Combat | -11 -10 -9 -------- Run | Yrd Mat Mat Hostile Shots Fired 81 | . 2 79 Missed 17 | . 1 16 Damage Taken 753 | . 12 741 Core 80 | . . 80 Absorbed by Shields . | . . . Core Remaining (%) 100 | 100 100 . Volleys Fired 35 | . 6 29 Largest 2 | . 2 2 Hottest 90 | . 80 90 Shots Fired 41 | . 7 34 Gun 39 | . 6 33 Cannon . | . . . Launcher 2 | . 1 1 Special . | . . . Kinetic . | . . . Thermal 32 | . 6 26 Explosive 2 | . 1 1 Electromagnetic 7 | . . 7 Robot Hit Streak 14 | . 3 14 Robot Miss Streak 4 | . 2 4 Penetration Max . | . . . Secondary Targets 1 | . . 1 Max Gunslinging Chain 1 | . . 1 Shots Hit Robots 27 | . 4 23 Core Hits 13 | . 4 9 Critical Kills . | . . . Critical Parts Destroyed . | . . . Critical Strikes 2 | . . 2 Burn 2 | . . 2 Melee Attacks . | . . . Impact . | . . . Slashing . | . . . Piercing . | . . . Sneak Attacks . | . . . Combat Hostiles . | . . . Follow-up Attacks . | . . . Damage Inflicted 526 | . 69 457 Guns 352 | . 38 314 Cannons . | . . . Explosions 174 | . 31 143 Melee . | . . . Ramming . | . . . Kinetic . | . . . Thermal 314 | . 38 276 Explosive 174 | . 31 143 Electromagnetic 38 | . . 38 Impact . | . . . Slashing . | . . . Piercing . | . . . Highest Corruption . | . . . Average Corruption . | . . . Corruption Purged . | . . . Corruption Blocked . | . . . Overload Shots . | . . . Overflow Damage . | . . . Projectiles . | . . . Explosions . | . . . Melee . | . . . Knockbacks . | . . . Impact . | . . . Kinetic . | . . . Secondary . | . . . Self-Inflicted Damage . | . . . Shots . | . . . Rammed 1 | . . 1 Targets Rammed 1 | . . 1 Kicked . | . . . Crushed . | . . . Highest Temperature 226 | . 30 226 Average Temperature 53 | . 13 61 Received Heat Transfer 297 | . 6 291 Siege Activations . | . . . Robots Corrupted . | . . . Combat Hostiles . | . . . Parts Fried . | . . . Impact Corruptions . | . . . Robots Melted . | . . . Combat Hostiles . | . . . Parts Melted 6 | . . 6 Heat Transferred 1073 | . 111 962 Parts Sabotaged . | . . . Parts Stolen . | . . . Parts Stripped . | . . . Power Chain Reactions . | . . . Alert | -11 -10 -9 ------- Run | Yrd Mat Mat Peak Influence 168 | . 75 168 Initial 31 | . . 31 Average 19 | . 39 63 Maximum Alert Level . | . . . Low Security (%) 100 | 100 100 100 Level 1 . | . . . Level 2 . | . . . Level 3 . | . . . Level 4 . | . . . Level 5 . | . . . High Security . | . . . Max Security . | . . . Squads Dispatched 1 | . 1 . Investigation . | . . . Extermination . | . . . Reinforcement 1 | . 1 . Assault . | . . . Garrison . | . . . Intercept . | . . . Searches Triggered . | . . . Construction Impeded . | . . . Haulers Reinforced . | . . . Active Scanning Responses . | . . . Cargo Convoy Interrupts . | . . . Stealth | -11 -10 -9 --------- Run | Yrd Mat Mat Distress Signals . | . . . Communications Jammed . | . . . Distress Signals . | . . . Times Spotted 10 | . 3 7 Peak Tracking Total 5 | . 1 5 Tactical Retreats 1 | . . 1 Traps | -11 -10 -9 ------- Run | Yrd Mat Mat Traps Triggered . | . . . Indirectly . | . . . Trap Hack Attempts . | . . . Triggered . | . . . Disarmed . | . . . Reprogrammed . | . . . Reused . | . . . Traps Extracted . | . . . Installed . | . . . Triggered . | . . . Machines | -11 -10 -9 ---------- Run | Yrd Mat Mat Machines Disabled . | . . . Max in Single Turn . | . . . Machines Repaired . | . . . Machines Dismantled . | . . . Machines Sabotaged . | . . . Overloaded Fab Kills . | . . . Hacking | -11 -10 -9 --------- Run | Yrd Mat Mat Machines Accessed 2 | . 2 . Terminals 2 | . 2 . Fabricators . | . . . Repair Stations . | . . . Recycling Units . | . . . Scanalyzers . | . . . Garrison Access . | . . . Total Hacks 2 | . 2 . Successful 2 | . 2 . Failed . | . . . Catastrophic . | . . . Database Lockouts . | . . . Manual . | . . . Terminals 2 | . 2 . Fabricators . | . . . Repair Stations . | . . . Recycling Units . | . . . Scanalyzers . | . . . Garrison Access . | . . . Terminal Hacks 2 | . 2 . Record 2 | . 2 . Fabricator Hacks . | . . . Repair Station Hacks . | . . . Recycling Unit Hacks . | . . . Scanalyzer . | . . . Garrison Access Hacks . | . . . Unauthorized Hacks . | . . . Terminals . | . . . Fabricators . | . . . Repair Stations . | . . . Recycling Units . | . . . Scanalyzers . | . . . Garrison Access . | . . . Data Cores Recovered . | . . . Used . | . . . Hacking Detections 1 | . 1 . Full Trace Events . | . . . Feedback Events . | . . . Feedback Blocked . | . . . Robot Schematics Acquired . | . . . Robots Built . | . . . Authchips . | . . . Time . | . . . Total Robot Build Rating . | . . . Part Schematics Acquired . | . . . Parts Built . | . . . Authchips . | . . . Time . | . . . Total Part Build Rating . | . . . Parts Repaired . | . . . Time . | . . . Parts Recycled . | . . . Recycled Matter . | . . . Retrieved Matter . | . . . Retrieved Components . | . . . Parts Scanalyzed . | . . . Part Schematics Acquired . | . . . Parts Damaged . | . . . Bothacking | -11 -10 -9 ------------ Run | Yrd Mat Mat Used RIF Installer . | . . . Robots Hacked . | . . . Non-combat . | . . . Combat . | . . . Robot Hacks Applied . | . . . Relay Couplers Released . | . . . Fabnet Peak Effective % . | . . . Robots Rewired . | . . . Allies Hacked . | . . . Hacks Repelled . | . . . Allies | -11 -10 -9 -------- Run | Yrd Mat Mat Total Allies . | . . . Largest Group . | . . . Highest-Rated Group . | . . . Highest-Rated Ally . | . . . Total Orders . | . . . Ally Attacks . | . . . Total Damage . | . . . Kills . | . . . Allies Corrupted . | . . . Allies Melted . | . . . Intel | -11 -10 -9 ------- Run | Yrd Mat Mat Robot Analysis Total . | . . . Derelict Logs Recovered . | . . . Drone Launches . | . . . Drone Recoveries . | . . . Exploration | -11 -10 -9 ------------- Run | Yrd Mat Mat Turns Passed 1296 | 811 206 279 Spaces Moved 379 | 132 118 129 Core 7 | 6 . 1 Treads 372 | 126 118 128 Legs . | . . . Wheels . | . . . Hover . | . . . Flight . | . . . Fastest Speed 50 | 50 160 150 Average Speed 158 | 155 160 159 Slowest Speed 160 | 160 160 160 Overloaded Moves . | . . . Propulsion Burnouts . | . . . Robots Hopped . | . . . Cave-ins Triggered . | . . . Exploration Rate (%) 19 | 17 29 12 Regions Visited 2 Branch Regions . Pre-discovered Areas . | . . . Known Exits Taken . | . . . Unknown Exits Taken 2 | 1 1 . Scrap Searched . | . . . Spaces Dug . | . . . Terrain Destroyed 18 | . 8 10 Melee . | . . . Projectile . | . . . AOE 18 | . 8 10 Terrain Rammed . | . . . Walls Destroyed . | . . . Machines Disabled . | . . . Actions | -11 -10 -9 --------- Run | Yrd Mat Mat Total 1035 | 739 128 168 Wait 595 | 595 . . Move 377 | 131 117 129 Hop . | . . . Pick Up 13 | 8 3 2 Fast Attach . | . . . Attach 12 | 5 2 5 Detach . | . . . Swap . | . . . Drop 2 | . . 2 Fire 35 | . 6 29 Melee . | . . . Ram . | . . . Kick . | . . . Crush 1 | . . 1 Escape Stasis . | . . . Rewire . | . . . Trap . | . . . Miscellaneous . | . . . Route ------- -11/Scrapyard -10/Materials -9/Materials History --------- Turn | Location | Event 3 | -11/Scrapyard | Discovered new exit (range 16) 812 | -11/Scrapyard | Entered Materials 813 | -10/Materials | Build established: Mutant 966 | -10/Materials | Discovered new exit (range 5) 1018 | -10/Materials | Entered another Materials area 1018 | -9/Materials | Evolved 2 slots: Power x1, Utility x1 1297 | -9/Materials | Self-destructed Last Messages --------------- Med. Laser destroyed. U-05 Engineer lays Concrete. R-06 Scavenger collects Terrain Scanner. U-05 Engineer lays Concrete. U-05 Engineer builds a Door. Lgt. Treads destroyed. K-01 Serf collects debris. R-06 Scavenger collects Corrupted Wheel. Seismic Detector destroyed. M-13 Machinist repairs Aluminum Leg. K-01 Serf collects debris. U-05 Engineer builds a Wall. K-01 Serf collects debris. EM Pulse Gun destroyed. U-05 Engineer lays Concrete. R-06 Scavenger collects Lgt. Ion Engine. U-05 Engineer builds a Door. U-05 Engineer builds a Wall. K-01 Serf collects debris. R-06 Scavenger collects Terrain Scan Processor. Map ----- +----------------------------------------------------+ | ??????????????????????????????????? | | ??????????????????????????????????? | | ??????????????????????????????????? | | ??????????????????????????????????? | | ??????????????????????????????????? | | ??????????????????????????????????? | | ??????????????????????????????????? | | ?????????????? ?????????????????? | | ?????????????? #????????????????? | | ?????????????# #????????????????? | | ?????????????# #????????????????? | | ?????????????# #????????????????? | | ?????????????# #????????????????? | | ?????????????# #??????####??????? | | ?????????????# #?????? #??????? | | ?????????????# #????? "#??????? | | ?????????????# #????* T#??????? | | ?????????????# #???* "#??????? | | ?????????????# #??** #??????? | | ?????????????# #? #??????? | | ?????????????# # ???????? | | ?????????????# # ?????????? | | ??????######## ##k #########???? | | ??????# %u u ??? | | ??????# *sm r % ##????????? | | ??????# @ =%gk u #?????????? | | ??????# ########## ##?????????? | | ??????# #????????? ???????????? | | ??????# #?????????? "?????????? | | ####### ########??? ""????????? | | # # # = #???? """???????? | | # # # #???? ??????? | | # # %# ""#????? ??????? | | # + + =[ T"#????? "T" #?????? | | # """ # # =[ ""#??????""" #?????? | | # """ # # #?????? ?????????? | | # """ # ## #####???????#????????? | | ####### ####????????????????????? | | ??????# #???????????????????????? | | ??????# #???????????????????????? | | ??????# ##########??????????????? | | ??###?# # #??????????????? | | ??# ## # """ #??????????????? | | ??# # # """ #??????????????? | | # # # """ #??????????????? | | ???# + #??????????????? | | ???## # # """ #??????????????? | | ????### # """ #??????????????? | | ??????# # """ #??????????????? | | ??????# # ]#??????????????? | +----------------------------------------------------+ Best States ------------- Heat Dissipation 28 Energy Generation 15 Energy Capacity 400 Matter Stores 300 Matter Capacity 300 Sight Range 16 Terrain Scan Density 10 Evasion (%) 40 Recoil Reduction 2 Item Schematics ----------------- None Robot Schematics ------------------ None Fabricated ------------ Nothing Alien Tech Used ----------------- None Achievements -------------- None Challenges ------------ None Game ------ Seed ShrapnelHeavyArmor Manual? 0 Play Time 00:13:22 Cumulative 3.7 hours Start 2024.04.29 @ 01:30:57 End 2024.04.29 @ 01:47:50 Sessions 1 Manual Loads 0 Difficulty Rogue Special Mode None Game No. 6 Rogue 6 Adventurer 0 Explorer 0 Win Type - Total 0 Types 0/0/0/0/0/0/0/0/0 Lore% 1 Gallery% 7 Achievement% 6 Wizard Run 0 Options --------- Layout 1 ASCII 0 Keyboard 0 Movement Mouse Keybinds 0 Fullscreen 2 Font 24/Smallcaps Map View 50x35 Zoom Use 10% Tactical HUD 0 Map Filters NONE Filters NONE Steam 1 RUN: 37df8448-d5f8-438f-9121-d0d22c9ce670